{"text_format":"3","workbook":"xlsx","n_sheets":4,"sheets":["Bắt đầu","Ngân sách đám cưới","Y phục-Đón tiếp-Âm nhạc-Ảnh","Trang trí-Hoa-Quà tặng-Đi lại"],"not_rendered":{"charts":1,"defined_names":22},"read":"whole","date_system":"1900"}

{"sheet":"Bắt đầu","index":0,"n_rows":7,"n_cols":2,"rows_kept":7}
[null,"GIỚI THIỆU VỀ MẪU NÀY"]
[null,"Sử dụng mẫu này để theo dõi chi phí đám cưới của bạn."]
[null,"Nhập chi phí ước tính và chi phí thực tế đã chi trên nhiều danh mục khác nhau trong các trang tính riêng biệt."]
[null,"Bản tóm tắt ngân sách đám cưới và biểu đồ sẽ tự động cập nhật cho bạn."]
[null,"Lưu ý: "]
[null,"Hướng dẫn bổ sung được cung cấp ở cột A trong từng trang tính. Văn bản này đã được ẩn một cách chủ ý. Để loại bỏ văn bản, chọn cột A, rồi chọn XÓA. Để bỏ ẩn văn bản, chọn cột A, rồi thay đổi màu phông chữ."]
[null,"Để tìm hiểu thêm về các bảng, hãy nhấn SHIFT, rồi nhấn F10 trong một bảng, chọn tùy chọn BẢNG, rồi chọn VĂN BẢN THAY THẾ."]

{"sheet":"Ngân sách đám cưới","index":1,"n_rows":19,"n_cols":6,"rows_kept":19,"merged":[[2,2,4,5],[18,2,42,5]]}
["Tạo Ngân sách đám cưới trong trang tính này. Nhập chi tiết vào các bảng trong trang tính Trang phục - Đón tiếp - Âm nhạc - Ảnh và trang tính Trang trí - Hoa - Quà tặng - Đi lại để cập nhật bản tóm tắt và biểu đồ trong trang tính hiện tại. Các hướng dẫn hữu ích về cách sử dụng trang tính này đều nằm ở các ô trong cột này. Nhãn Ngày cưới nằm ở ô C1.",null,"Ngày cưới:"]
["Nhập Ngày cưới vào ô C2. Số ngày còn lại được tính toán tự động trong ô E2.",null,{"$f":"TODAY()+365","v":"2019-12-27"},"Số ngày còn lại:",{"$f":"C2-TODAY()","v":365}]
["Tiêu đề của trang tính này nằm trong ô C3. Hướng dẫn tiếp theo nằm trong ô A6.",null,"Tóm tắt ngân sách đám cưới"]
[]
[]
["Bảng Tổng kết ngân sách bắt đầu ở ô C6 được tự động cập nhật. Hướng dẫn tiếp theo nằm trong ô A19.",null,"DANH MỤC","ƯỚC TÍNH","THỰC TẾ","VƯỢT/THẤP HƠN"]
[null,null,"Trang phục",{"$f":"Tổng_chi_phí_y_phục_dự_tính","v":{"v":9490,"d":"9,490.00"}},{"$f":"Tổng_chi_phí_y_phục_thực_tế","v":{"v":9770,"d":"9,770.00"}},{"$f":"Tổng_kết_ngân_sách[[#This Row],[ƯỚC TÍNH]]-Tổng_kết_ngân_sách[[#This Row],[THỰC TẾ]]","v":{"v":-280,"d":"-280.00"}}]
[null,null,"Đón tiếp",{"$f":"Tổng_chi_phí_đón_tiếp_dự_tính","v":{"v":1050,"d":"1,050.00"}},{"$f":"Tổng_chi_phí_đón_tiếp_thực_tế","v":{"v":928,"d":"928.00"}},{"$f":"Tổng_kết_ngân_sách[[#This Row],[ƯỚC TÍNH]]-Tổng_kết_ngân_sách[[#This Row],[THỰC TẾ]]","v":{"v":122,"d":"122.00"}}]
[null,null,"Âm nhạc",{"$f":"Tổng_chi_phí_giải_trí_âm_nhạc_dự_tính","v":{"v":600,"d":"600.00"}},{"$f":"Tổng_chi_phí_giải_trí_âm_nhạc_thực_tế","v":{"v":400,"d":"400.00"}},{"$f":"Tổng_kết_ngân_sách[[#This Row],[ƯỚC TÍNH]]-Tổng_kết_ngân_sách[[#This Row],[THỰC TẾ]]","v":{"v":200,"d":"200.00"}}]
[null,null,"In",{"$f":"Tổng_chi_phí_in_văn_phòng_phẩm_dự_tính","v":{"v":935,"d":"935.00"}},{"$f":"Tổng_chi_phí_in_văn_phòng_phẩm_thực_tế","v":{"v":870,"d":"870.00"}},{"$f":"Tổng_kết_ngân_sách[[#This Row],[ƯỚC TÍNH]]-Tổng_kết_ngân_sách[[#This Row],[THỰC TẾ]]","v":{"v":65,"d":"65.00"}}]
[null,null,"Nhiếp ảnh",{"$f":"Tổng_chi_phí_nhiếp_ảnh_dự_tính","v":{"v":1625,"d":"1,625.00"}},{"$f":"Tổng_chi_phí_nhiếp_ảnh_thực_tế","v":{"v":1575,"d":"1,575.00"}},{"$f":"Tổng_kết_ngân_sách[[#This Row],[ƯỚC TÍNH]]-Tổng_kết_ngân_sách[[#This Row],[THỰC TẾ]]","v":{"v":50,"d":"50.00"}}]
[null,null,"Trang trí",{"$f":"Tổng_chi_phí_đồ_trang_trí_dự_tính","v":{"v":700,"d":"700.00"}},{"$f":"Tổng_chi_phí_đồ_trang_trí_thực_tế","v":{"v":720,"d":"720.00"}},{"$f":"Tổng_kết_ngân_sách[[#This Row],[ƯỚC TÍNH]]-Tổng_kết_ngân_sách[[#This Row],[THỰC TẾ]]","v":{"v":-20,"d":"-20.00"}}]
[null,null,"Hoa",{"$f":"Tổng_chi_phí_hoa_dự_tính","v":{"v":900,"d":"900.00"}},{"$f":"Tổng_chi_phí_hoa_thực_tế","v":{"v":850,"d":"850.00"}},{"$f":"Tổng_kết_ngân_sách[[#This Row],[ƯỚC TÍNH]]-Tổng_kết_ngân_sách[[#This Row],[THỰC TẾ]]","v":{"v":50,"d":"50.00"}}]
[null,null,"Quà tặng",{"$f":"Tổng_chi_phí_quà_tặng_dự_tính","v":{"v":1345,"d":"1,345.00"}},{"$f":"Tổng_chi_phí_quà_tặng_thực_tế","v":{"v":1075,"d":"1,075.00"}},{"$f":"Tổng_kết_ngân_sách[[#This Row],[ƯỚC TÍNH]]-Tổng_kết_ngân_sách[[#This Row],[THỰC TẾ]]","v":{"v":270,"d":"270.00"}}]
[null,null,"Đi lại",{"$f":"Tổng_chi_phí_vận_chuyển_đi_lại_dự_tính","v":{"v":100,"d":"100.00"}},{"$f":"Tổng_chi_phí_vận_chuyển_đi_lại_thực_tế","v":{"v":165,"d":"165.00"}},{"$f":"Tổng_kết_ngân_sách[[#This Row],[ƯỚC TÍNH]]-Tổng_kết_ngân_sách[[#This Row],[THỰC TẾ]]","v":{"v":-65,"d":"-65.00"}}]
[null,null,"Khác",{"$f":"Tổng_các_chi_phí_dự_tính_khác","v":{"v":885,"d":"885.00"}},{"$f":"Tổng_các_chi_phí_thực_tế_khác","v":{"v":1021,"d":"1,021.00"}},{"$f":"Tổng_kết_ngân_sách[[#This Row],[ƯỚC TÍNH]]-Tổng_kết_ngân_sách[[#This Row],[THỰC TẾ]]","v":{"v":-136,"d":"-136.00"}}]
[null,null,"Tổng chi phí",{"$f":"SUBTOTAL(109,Tổng_kết_ngân_sách[ƯỚC TÍNH])","v":{"v":17630,"d":"17,630.00"}},{"$f":"SUBTOTAL(109,Tổng_kết_ngân_sách[THỰC TẾ])","v":{"v":17374,"d":"17,374.00"}},{"$f":"SUBTOTAL(109,Tổng_kết_ngân_sách[VƯỢT/THẤP HƠN])","v":{"v":256,"d":"256.00"}}]
[]
["Biểu đồ hình tròn nằm trong ô C19 được tự động cập nhật.",null,"Biểu đồ hình tròn hiển thị phần trăm chi phí của mỗi danh mục trong ô này."]

{"sheet":"Y phục-Đón tiếp-Âm nhạc-Ảnh","index":2,"n_rows":56,"n_cols":6,"rows_kept":56,"merged":[[16,1,16,4],[28,1,28,4],[29,1,29,4],[35,1,35,4],[48,1,48,4]]}
["Nhập chi phí Ước tính và Thực tế cho từng danh mục vào các bảng tương ứng trong trang tính này. Số tiền vượt hoặc thấp hơn sẽ được tính toán tự động. Nhãn Trang phục nằm trong ô bên phải. Các hướng dẫn hữu ích về cách sử dụng trang tính này đều nằm ở các ô trong cột này. Nhấn mũi tên xuống để bắt đầu.","Trang phục",{"$nulls":3}," "]
[" Nhập chi tiết vào bảng Trang phục bắt đầu ở ô bên phải. Hướng dẫn tiếp theo nằm trong ô A18.","DANH MỤC","ƯỚC TÍNH","THỰC TẾ","VƯỢT/THẤP HƠN"," "]
[null,"Nhẫn đính hôn",{"v":1500,"d":"1,500.00"},{"v":1500,"d":"1,500.00"},{"$f":"'Y phục-Đón tiếp-Âm nhạc-Ảnh'!$C3-'Y phục-Đón tiếp-Âm nhạc-Ảnh'!$D3","v":{"v":0,"d":"0.00"}}]
[null,"Nhẫn cô dâu/chú rể 1",{"v":2000,"d":"2,000.00"},{"v":2300,"d":"2,300.00"},{"$f":"'Y phục-Đón tiếp-Âm nhạc-Ảnh'!$C4-'Y phục-Đón tiếp-Âm nhạc-Ảnh'!$D4","v":{"v":-300,"d":"-300.00 "}}]
[null,"Váy cưới/bộ vét của cô dâu/chú rể 1",{"v":3000,"d":"3,000.00"},{"v":2750,"d":"2,750.00"},{"$f":"'Y phục-Đón tiếp-Âm nhạc-Ảnh'!$C5-'Y phục-Đón tiếp-Âm nhạc-Ảnh'!$D5","v":{"v":250,"d":"250.00"}}]
[null,"Khăn voan/phụ kiện tóc của cô dâu 1",{"v":500,"d":"500.00"},{"v":500,"d":"500.00"},{"$f":"'Y phục-Đón tiếp-Âm nhạc-Ảnh'!$C6-'Y phục-Đón tiếp-Âm nhạc-Ảnh'!$D6","v":{"v":0,"d":"0.00"}}]
[null,"Giày cô dâu/chú rể 1",{"v":350,"d":"350.00"},{"v":300,"d":"300.00"},{"$f":"'Y phục-Đón tiếp-Âm nhạc-Ảnh'!$C7-'Y phục-Đón tiếp-Âm nhạc-Ảnh'!$D7","v":{"v":50,"d":"50.00"}}]
[null,"Trang sức cô dâu/chú rể 1",{"v":400,"d":"400.00"},{"v":550,"d":"550.00"},{"$f":"'Y phục-Đón tiếp-Âm nhạc-Ảnh'!$C8-'Y phục-Đón tiếp-Âm nhạc-Ảnh'!$D8","v":{"v":-150,"d":"-150.00 "}}]
[null,"Tất của cô dâu/chú rể 1",{"v":20,"d":"20.00"},{"v":20,"d":"20.00"},{"$f":"'Y phục-Đón tiếp-Âm nhạc-Ảnh'!$C9-'Y phục-Đón tiếp-Âm nhạc-Ảnh'!$D9","v":{"v":0,"d":"0.00"}}]
[null,"Nhẫn cô dâu/chú rể 2",{"v":300,"d":"300.00"},{"v":250,"d":"250.00"},{"$f":"'Y phục-Đón tiếp-Âm nhạc-Ảnh'!$C10-'Y phục-Đón tiếp-Âm nhạc-Ảnh'!$D10","v":{"v":50,"d":"50.00"}}]
[null,"Váy cưới/bộ vét của cô dâu/chú rể 2",{"v":300,"d":"300.00"},{"v":350,"d":"350.00"},{"$f":"'Y phục-Đón tiếp-Âm nhạc-Ảnh'!$C11-'Y phục-Đón tiếp-Âm nhạc-Ảnh'!$D11","v":{"v":-50,"d":"-50.00 "}}]
[null,"Khăn voan/phụ kiện tóc của cô dâu 2",{"v":500,"d":"500.00"},{"v":500,"d":"500.00"},{"$f":"'Y phục-Đón tiếp-Âm nhạc-Ảnh'!$C12-'Y phục-Đón tiếp-Âm nhạc-Ảnh'!$D12","v":{"v":0,"d":"0.00"}}]
[null,"Giày cô dâu/chú rể 2",{"v":200,"d":"200.00"},{"v":175,"d":"175.00"},{"$f":"'Y phục-Đón tiếp-Âm nhạc-Ảnh'!$C13-'Y phục-Đón tiếp-Âm nhạc-Ảnh'!$D13","v":{"v":25,"d":"25.00"}}]
[null,"Trang sức cô dâu/chú rể 2",{"v":400,"d":"400.00"},{"v":550,"d":"550.00"},{"$f":"'Y phục-Đón tiếp-Âm nhạc-Ảnh'!$C14-'Y phục-Đón tiếp-Âm nhạc-Ảnh'!$D14","v":{"v":-150,"d":"-150.00 "}}]
[null,"Tất của cô dâu/chú rể 2",{"v":20,"d":"20.00"},{"v":25,"d":"25.00"},{"$f":"'Y phục-Đón tiếp-Âm nhạc-Ảnh'!$C15-'Y phục-Đón tiếp-Âm nhạc-Ảnh'!$D15","v":{"v":-5,"d":"-5.00 "}}]
[null,"Tổng chi phí trang phục",{"$f":"SUBTOTAL(109,Trang_phục[ƯỚC TÍNH])","v":{"v":9490,"d":"9,490.00"}},{"$f":"SUBTOTAL(109,Trang_phục[THỰC TẾ])","v":{"v":9770,"d":"9,770.00"}},{"$f":"SUBTOTAL(109,Trang_phục[VƯỢT/THẤP HƠN])","v":{"v":-280,"d":"-280.00 "}}]
[]
["Nhãn Đón tiếp khách nằm trong ô bên phải.","Đón tiếp*"]
["Nhập chi phí Đón tiếp, không bao gồm chi phí Chiêu đãi và Trang trí trong bảng bắt đầu ở ô bên phải. Hướng dẫn tiếp theo nằm trong ô A31.","DANH MỤC","ƯỚC TÍNH","THỰC TẾ","VƯỢT/THẤP HƠN"]
[null,"Phí phòng/sảnh",{"v":200,"d":"200.00"},{"v":150,"d":"150.00"},{"$f":"'Y phục-Đón tiếp-Âm nhạc-Ảnh'!$C20-'Y phục-Đón tiếp-Âm nhạc-Ảnh'!$D20","v":{"v":50,"d":"50.00"}}]
[null,"Bàn và ghế",{"v":100,"d":"100.00"},{"v":50,"d":"50.00"},{"$f":"'Y phục-Đón tiếp-Âm nhạc-Ảnh'!$C21-'Y phục-Đón tiếp-Âm nhạc-Ảnh'!$D21","v":{"v":50,"d":"50.00"}}]
[null,"Thức ăn",{"v":0,"d":"0.00"},{"v":0,"d":"0.00"},{"$f":"'Y phục-Đón tiếp-Âm nhạc-Ảnh'!$C22-'Y phục-Đón tiếp-Âm nhạc-Ảnh'!$D22","v":{"v":0,"d":"0.00"}}]
[null,"Đồ uống",{"v":0,"d":"0.00"},{"v":0,"d":"0.00"},{"$f":"'Y phục-Đón tiếp-Âm nhạc-Ảnh'!$C23-'Y phục-Đón tiếp-Âm nhạc-Ảnh'!$D23","v":{"v":0,"d":"0.00"}}]
[null,"Khăn bàn",{"v":0,"d":"0.00"},{"v":0,"d":"0.00"},{"$f":"'Y phục-Đón tiếp-Âm nhạc-Ảnh'!$C24-'Y phục-Đón tiếp-Âm nhạc-Ảnh'!$D24","v":{"v":0,"d":"0.00"}}]
[null,"Bánh",{"v":700,"d":"700.00"},{"v":700,"d":"700.00"},{"$f":"'Y phục-Đón tiếp-Âm nhạc-Ảnh'!$C25-'Y phục-Đón tiếp-Âm nhạc-Ảnh'!$D25","v":{"v":0,"d":"0.00"}}]
[null,"Phù hiệu đeo",{"v":50,"d":"50.00"},{"v":28,"d":"28.00"},{"$f":"'Y phục-Đón tiếp-Âm nhạc-Ảnh'!$C26-'Y phục-Đón tiếp-Âm nhạc-Ảnh'!$D26","v":{"v":22,"d":"22.00"}}]
[null,"Nhân viên và tiền boa",{"v":0,"d":"0.00"},{"v":0,"d":"0.00"},{"$f":"'Y phục-Đón tiếp-Âm nhạc-Ảnh'!$C27-'Y phục-Đón tiếp-Âm nhạc-Ảnh'!$D27","v":{"v":0,"d":"0.00"}}]
[null,"Tổng chi phí đón tiếp",{"$f":"SUBTOTAL(109,Đón_tiếp[ƯỚC TÍNH])","v":{"v":1050,"d":"1,050.00"}},{"$f":"SUBTOTAL(109,Đón_tiếp[THỰC TẾ])","v":{"v":928,"d":"928.00"}},{"$f":"SUBTOTAL(109,Đón_tiếp[VƯỢT/THẤP HƠN])","v":{"v":122,"d":"122.00"}}]
[null,"*Không bao gồm chi phí chiêu đãi và trang trí"]
[]
["Nhãn Âm nhạc hoặc Chiêu đãi nằm trong ô bên phải.","Nhạc/Chiêu đãi"]
["Nhập các chi tiết vào bảng Âm nhạc bắt đầu ở ô bên phải. Hướng dẫn tiếp theo nằm trong ô A37.","DANH MỤC","ƯỚC TÍNH","THỰC TẾ","VƯỢT/THẤP HƠN"]
[null,"Nhạc công cho buổi lễ",{"v":400,"d":"400.00"},{"v":400,"d":"400.00"},{"$f":"'Y phục-Đón tiếp-Âm nhạc-Ảnh'!$C33-'Y phục-Đón tiếp-Âm nhạc-Ảnh'!$D33","v":{"v":0,"d":"0.00"}}]
[null,"Ban nhạc/DJ cho quầy đón khách",{"v":200,"d":"200.00"},{"v":0,"d":"0.00"},{"$f":"'Y phục-Đón tiếp-Âm nhạc-Ảnh'!$C34-'Y phục-Đón tiếp-Âm nhạc-Ảnh'!$D34","v":{"v":200,"d":"200.00"}}]
[null,"Tổng chi phí Âm nhạc/Chiêu đãi",{"$f":"SUBTOTAL(109,Âm_nhạc[ƯỚC TÍNH])","v":{"v":600,"d":"600.00"}},{"$f":"SUBTOTAL(109,Âm_nhạc[THỰC TẾ])","v":{"v":400,"d":"400.00"}},{"$f":"SUBTOTAL(109,Âm_nhạc[VƯỢT/THẤP HƠN])","v":{"v":200,"d":"200.00"}}]
[]
["Nhãn In hoặc Văn phòng phẩm nằm trong ô bên phải.","In/Văn phòng phẩm"]
["Nhập chi tiết vào bảng In bắt đầu ở ô bên phải. Hướng dẫn tiếp theo nằm trong ô A50.","DANH MỤC","ƯỚC TÍNH","THỰC TẾ","VƯỢT/THẤP HƠN"]
[null,"Thư mời",{"v":500,"d":"500.00"},{"v":450,"d":"450.00"},{"$f":"'Y phục-Đón tiếp-Âm nhạc-Ảnh'!$C39-'Y phục-Đón tiếp-Âm nhạc-Ảnh'!$D39","v":{"v":50,"d":"50.00"}}]
[null,"Thông báo",{"v":200,"d":"200.00"},{"v":175,"d":"175.00"},{"$f":"'Y phục-Đón tiếp-Âm nhạc-Ảnh'!$C40-'Y phục-Đón tiếp-Âm nhạc-Ảnh'!$D40","v":{"v":25,"d":"25.00"}}]
[null,"Thiệp cảm ơn",{"v":100,"d":"100.00"},{"v":100,"d":"100.00"},{"$f":"'Y phục-Đón tiếp-Âm nhạc-Ảnh'!$C41-'Y phục-Đón tiếp-Âm nhạc-Ảnh'!$D41","v":{"v":0,"d":"0.00"}}]
[null,"Văn phòng phẩm cá nhân",{"v":0,"d":"0.00"},{"v":0,"d":"0.00"},{"$f":"'Y phục-Đón tiếp-Âm nhạc-Ảnh'!$C42-'Y phục-Đón tiếp-Âm nhạc-Ảnh'!$D42","v":{"v":0,"d":"0.00"}}]
[null,"Sổ khách mời",{"v":25,"d":"25.00"},{"v":25,"d":"25.00"},{"$f":"'Y phục-Đón tiếp-Âm nhạc-Ảnh'!$C43-'Y phục-Đón tiếp-Âm nhạc-Ảnh'!$D43","v":{"v":0,"d":"0.00"}}]
[null,"Chương trình",{"v":75,"d":"75.00"},{"v":80,"d":"80.00"},{"$f":"'Y phục-Đón tiếp-Âm nhạc-Ảnh'!$C44-'Y phục-Đón tiếp-Âm nhạc-Ảnh'!$D44","v":{"v":-5,"d":"-5.00 "}}]
[null,"Khăn ăn quầy tiếp đón khách",{"v":35,"d":"35.00"},{"v":40,"d":"40.00"},{"$f":"'Y phục-Đón tiếp-Âm nhạc-Ảnh'!$C45-'Y phục-Đón tiếp-Âm nhạc-Ảnh'!$D45","v":{"v":-5,"d":"-5.00 "}}]
[null,"Hộp diêm",{"v":0,"d":"0.00"},{"v":0,"d":"0.00"},{"$f":"'Y phục-Đón tiếp-Âm nhạc-Ảnh'!$C46-'Y phục-Đón tiếp-Âm nhạc-Ảnh'!$D46","v":{"v":0,"d":"0.00"}}]
[null,"Thư pháp",{"v":0,"d":"0.00"},{"v":0,"d":"0.00"},{"$f":"'Y phục-Đón tiếp-Âm nhạc-Ảnh'!$C47-'Y phục-Đón tiếp-Âm nhạc-Ảnh'!$D47","v":{"v":0,"d":"0.00"}}]
[null,"Tổng chi phí in/văn phòng phẩm",{"$f":"SUBTOTAL(109,In[ƯỚC TÍNH])","v":{"v":935,"d":"935.00"}},{"$f":"SUBTOTAL(109,In[THỰC TẾ])","v":{"v":870,"d":"870.00"}},{"$f":"SUBTOTAL(109,In[VƯỢT/THẤP HƠN])","v":{"v":65,"d":"65.00"}}]
[]
["Nhãn Nhiếp ảnh nằm trong ô bên phải.","Nhiếp ảnh"]
["Nhập chi tiết vào bảng Nhiếp ảnh bắt đầu ở ô bên phải.","DANH MỤC","ƯỚC TÍNH","THỰC TẾ","VƯỢT/THẤP HƠN"]
[null,"Trang trọng",{"v":1300,"d":"1,300.00"},{"v":1300,"d":"1,300.00"},{"$f":"'Y phục-Đón tiếp-Âm nhạc-Ảnh'!$C52-'Y phục-Đón tiếp-Âm nhạc-Ảnh'!$D52","v":{"v":0,"d":"0.00"}}]
[null,"Bản in thêm",{"v":25,"d":"25.00"},{"v":25,"d":"25.00"},{"$f":"'Y phục-Đón tiếp-Âm nhạc-Ảnh'!$C53-'Y phục-Đón tiếp-Âm nhạc-Ảnh'!$D53","v":{"v":0,"d":"0.00"}}]
[null,"Album ảnh",{"v":100,"d":"100.00"},{"v":100,"d":"100.00"},{"$f":"'Y phục-Đón tiếp-Âm nhạc-Ảnh'!$C54-'Y phục-Đón tiếp-Âm nhạc-Ảnh'!$D54","v":{"v":0,"d":"0.00"}}]
[null,"Quay video",{"v":200,"d":"200.00"},{"v":150,"d":"150.00"},{"$f":"'Y phục-Đón tiếp-Âm nhạc-Ảnh'!$C55-'Y phục-Đón tiếp-Âm nhạc-Ảnh'!$D55","v":{"v":50,"d":"50.00"}}]
[null,"Tổng chi phí nhiếp ảnh",{"$f":"SUBTOTAL(109,Nhiếp_ảnh[ƯỚC TÍNH])","v":{"v":1625,"d":"1,625.00"}},{"$f":"SUBTOTAL(109,Nhiếp_ảnh[THỰC TẾ])","v":{"v":1575,"d":"1,575.00"}},{"$f":"SUBTOTAL(109,Nhiếp_ảnh[VƯỢT/THẤP HƠN])","v":{"v":50,"d":"50.00"}}]

{"sheet":"Trang trí-Hoa-Quà tặng-Đi lại","index":3,"n_rows":48,"n_cols":5,"rows_kept":48,"merged":[[8,1,8,4],[9,1,9,4],[18,1,18,4],[27,1,27,4],[34,1,34,4]]}
["Nhập chi phí Ước tính và Thực tế cho từng danh mục vào các bảng tương ứng trong trang tính này. Số tiền vượt hoặc thấp hơn sẽ được tính toán tự động. Nhãn Trang trí nằm trong ô bên phải. Các hướng dẫn hữu ích về cách sử dụng trang tính này đều nằm ở các ô trong cột này. Nhấn mũi tên xuống để bắt đầu.","Trang trí*"]
["Nhập chi phí đón tiếp, không bao gồm chi phí hoa trong bảng bắt đầu ở ô bên phải. Hướng dẫn tiếp theo nằm trong ô A11.","DANH MỤC","ƯỚC TÍNH","THỰC TẾ","VƯỢT/THẤP HƠN"]
[null,"Nơ cho ghế ngồi",{"v":0,"d":"0.00"},{"v":0,"d":"0.00"},{"$f":"'Trang trí-Hoa-Quà tặng-Đi lại'!$C3-'Trang trí-Hoa-Quà tặng-Đi lại'!$D3","v":{"v":0,"d":"0.00"}}]
[null,"Đồ trang trí đặt giữa bàn",{"v":300,"d":"300.00"},{"v":320,"d":"320.00"},{"$f":"'Trang trí-Hoa-Quà tặng-Đi lại'!$C4-'Trang trí-Hoa-Quà tặng-Đi lại'!$D4","v":{"v":-20,"d":"-20.00 "}}]
[null,"Nến",{"v":100,"d":"100.00"},{"v":75,"d":"75.00"},{"$f":"'Trang trí-Hoa-Quà tặng-Đi lại'!$C5-'Trang trí-Hoa-Quà tặng-Đi lại'!$D5","v":{"v":25,"d":"25.00"}}]
[null,"Đèn",{"v":100,"d":"100.00"},{"v":75,"d":"75.00"},{"$f":"'Trang trí-Hoa-Quà tặng-Đi lại'!$C6-'Trang trí-Hoa-Quà tặng-Đi lại'!$D6","v":{"v":25,"d":"25.00"}}]
[null,"Bóng bay",{"v":200,"d":"200.00"},{"v":250,"d":"250.00"},{"$f":"'Trang trí-Hoa-Quà tặng-Đi lại'!$C7-'Trang trí-Hoa-Quà tặng-Đi lại'!$D7","v":{"v":-50,"d":"-50.00 "}}]
[null,"Tổng chi phí Trang trí",{"$f":"SUBTOTAL(109,Đồ_trang_trí[ƯỚC TÍNH])","v":{"v":700,"d":"700.00"}},{"$f":"SUBTOTAL(109,Đồ_trang_trí[THỰC TẾ])","v":{"v":720,"d":"720.00"}},{"$f":"SUBTOTAL(109,Đồ_trang_trí[VƯỢT/THẤP HƠN])","v":{"v":-20,"d":"-20.00 "}}]
[null,"*Không bao gồm hoa"]
[]
["Nhãn Hoa nằm trong ô bên phải.","Hoa"]
["Nhập chi tiết vào bảng Hoa bắt đầu ở ô bên phải. Hướng dẫn tiếp theo nằm trong ô A20.","DANH MỤC","ƯỚC TÍNH","THỰC TẾ","VƯỢT/THẤP HƠN"]
[null,"Hoa cô dâu",{"v":500,"d":"500.00"},{"v":450,"d":"450.00"},{"$f":"'Trang trí-Hoa-Quà tặng-Đi lại'!$C13-'Trang trí-Hoa-Quà tặng-Đi lại'!$D13","v":{"v":50,"d":"50.00"}}]
[null,"Hoa cài áo",{"v":0,"d":"0.00"},{"v":0,"d":"0.00"},{"$f":"'Trang trí-Hoa-Quà tặng-Đi lại'!$C14-'Trang trí-Hoa-Quà tặng-Đi lại'!$D14","v":{"v":0,"d":"0.00"}}]
[null,"Hoa đeo tay",{"v":0,"d":"0.00"},{"v":0,"d":"0.00"},{"$f":"'Trang trí-Hoa-Quà tặng-Đi lại'!$C15-'Trang trí-Hoa-Quà tặng-Đi lại'!$D15","v":{"v":0,"d":"0.00"}}]
[null,"Hoa nghi lễ",{"v":400,"d":"400.00"},{"v":400,"d":"400.00"},{"$f":"'Trang trí-Hoa-Quà tặng-Đi lại'!$C16-'Trang trí-Hoa-Quà tặng-Đi lại'!$D16","v":{"v":0,"d":"0.00"}}]
[null,"Đón tiếp",{"v":0,"d":"0.00"},{"v":0,"d":"0.00"},{"$f":"'Trang trí-Hoa-Quà tặng-Đi lại'!$C17-'Trang trí-Hoa-Quà tặng-Đi lại'!$D17","v":{"v":0,"d":"0.00"}}]
[null,"Tổng chi phí hoa",{"$f":"SUBTOTAL(109,Hoa[ƯỚC TÍNH])","v":{"v":900,"d":"900.00"}},{"$f":"SUBTOTAL(109,Hoa[THỰC TẾ])","v":{"v":850,"d":"850.00"}},{"$f":"SUBTOTAL(109,Hoa[VƯỢT/THẤP HƠN])","v":{"v":50,"d":"50.00"}}]
[]
["Nhãn Quà tặng nằm trong ô bên phải.","Quà tặng"]
["Nhập chi tiết vào bảng Quà tặng bắt đầu ở ô bên phải. Hướng dẫn tiếp theo nằm trong ô A29.","DANH MỤC","ƯỚC TÍNH","THỰC TẾ","VƯỢT/THẤP HƠN"]
[null,"Người tham dự",{"v":1000,"d":"1,000.00"},{"v":400,"d":"400.00"},{"$f":"'Trang trí-Hoa-Quà tặng-Đi lại'!$C22-'Trang trí-Hoa-Quà tặng-Đi lại'!$D22","v":{"v":600,"d":"600.00"}}]
[null,"Cô dâu/Chú rể 1",{"v":150,"d":"150.00"},{"v":200,"d":"200.00"},{"$f":"'Trang trí-Hoa-Quà tặng-Đi lại'!$C23-'Trang trí-Hoa-Quà tặng-Đi lại'!$D23","v":{"v":-50,"d":"-50.00 "}}]
[null,"Cô dâu/Chú rể 2",{"v":150,"d":"150.00"},{"v":200,"d":"200.00"},{"$f":"'Trang trí-Hoa-Quà tặng-Đi lại'!$C24-'Trang trí-Hoa-Quà tặng-Đi lại'!$D24","v":{"v":-50,"d":"-50.00 "}}]
[null,"Cha mẹ",{"v":25,"d":"25.00"},{"v":25,"d":"25.00"},{"$f":"'Trang trí-Hoa-Quà tặng-Đi lại'!$C25-'Trang trí-Hoa-Quà tặng-Đi lại'!$D25","v":{"v":0,"d":"0.00"}}]
[null,"Người đọc/những người dự khác",{"v":20,"d":"20.00"},{"v":250,"d":"250.00"},{"$f":"'Trang trí-Hoa-Quà tặng-Đi lại'!$C26-'Trang trí-Hoa-Quà tặng-Đi lại'!$D26","v":{"v":-230,"d":"-230.00 "}}]
[null,"Tổng chi phí quà tặng",{"$f":"SUBTOTAL(109,Quà_tặng[ƯỚC TÍNH])","v":{"v":1345,"d":"1,345.00"}},{"$f":"SUBTOTAL(109,Quà_tặng[THỰC TẾ])","v":{"v":1075,"d":"1,075.00"}},{"$f":"SUBTOTAL(109,Quà_tặng[VƯỢT/THẤP HƠN])","v":{"v":270,"d":"270.00"}}]
[]
["Nhãn Đi lại hoặc Phương tiện đi lại nằm trong ô bên phải.","Đi lại/Phương tiện đi lại"]
["Nhập chi tiết vào bảng Đi lại bắt đầu ở ô bên phải. Hướng dẫn tiếp theo nằm trong ô A36.","DANH MỤC","ƯỚC TÍNH","THỰC TẾ","VƯỢT/THẤP HƠN"]
[null,"Xe sang/xe điện",{"v":100,"d":"100.00"},{"v":125,"d":"125.00"},{"$f":"'Trang trí-Hoa-Quà tặng-Đi lại'!$C31-'Trang trí-Hoa-Quà tặng-Đi lại'!$D31","v":{"v":-25,"d":"-25.00 "}}]
[null,"Đỗ xe",{"v":0,"d":"0.00"},{"v":40,"d":"40.00"},{"$f":"'Trang trí-Hoa-Quà tặng-Đi lại'!$C32-'Trang trí-Hoa-Quà tặng-Đi lại'!$D32","v":{"v":-40,"d":"-40.00 "}}]
[null,"Taxi",{"v":0,"d":"0.00"},{"v":0,"d":"0.00"},{"$f":"'Trang trí-Hoa-Quà tặng-Đi lại'!$C33-'Trang trí-Hoa-Quà tặng-Đi lại'!$D33","v":{"v":0,"d":"0.00"}}]
[null,"Tổng chi phí Đi lại/Phương tiện đi lại",{"$f":"SUBTOTAL(109,Đi_lại[ƯỚC TÍNH])","v":{"v":100,"d":"100.00"}},{"$f":"SUBTOTAL(109,Đi_lại[THỰC TẾ])","v":{"v":165,"d":"165.00"}},{"$f":"SUBTOTAL(109,Đi_lại[VƯỢT/THẤP HƠN])","v":{"v":-65,"d":"-65.00 "}}]
[]
["Nhãn Chi phí khác nằm trong ô bên phải.","Chi phí khác"]
["Nhập chi tiết vào bảng Chi phí khác bắt đầu ở ô bên phải.","DANH MỤC","ƯỚC TÍNH","THỰC TẾ","VƯỢT/THẤP HƠN"]
[null,"Tu sĩ hành lễ",{"v":0,"d":"0.00"},{"v":0,"d":"0.00"},{"$f":"'Trang trí-Hoa-Quà tặng-Đi lại'!$C38-'Trang trí-Hoa-Quà tặng-Đi lại'!$D38","v":{"v":0,"d":"0.00"}}]
[null,"Phí nhà thờ/lễ",{"v":40,"d":"40.00"},{"v":55,"d":"55.00"},{"$f":"'Trang trí-Hoa-Quà tặng-Đi lại'!$C39-'Trang trí-Hoa-Quà tặng-Đi lại'!$D39","v":{"v":-15,"d":"-15.00 "}}]
[null,"Điều phối viên đám cưới",{"v":0,"d":"0.00"},{"v":0,"d":"0.00"},{"$f":"'Trang trí-Hoa-Quà tặng-Đi lại'!$C40-'Trang trí-Hoa-Quà tặng-Đi lại'!$D40","v":{"v":0,"d":"0.00"}}]
[null,"Tổng duyệt trước ngày cưới",{"v":450,"d":"450.00"},{"v":450,"d":"450.00"},{"$f":"'Trang trí-Hoa-Quà tặng-Đi lại'!$C41-'Trang trí-Hoa-Quà tặng-Đi lại'!$D41","v":{"v":0,"d":"0.00"}}]
[null,"Tiệc đính hôn",{"v":20,"d":"20.00"},{"v":50,"d":"50.00"},{"$f":"'Trang trí-Hoa-Quà tặng-Đi lại'!$C42-'Trang trí-Hoa-Quà tặng-Đi lại'!$D42","v":{"v":-30,"d":"-30.00 "}}]
[null,"Tiệc quà tặng",{"v":30,"d":"30.00"},{"v":20,"d":"20.00"},{"$f":"'Trang trí-Hoa-Quà tặng-Đi lại'!$C43-'Trang trí-Hoa-Quà tặng-Đi lại'!$D43","v":{"v":10,"d":"10.00"}}]
[null,"Cuộc hẹn làm tóc",{"v":45,"d":"45.00"},{"v":46,"d":"46.00"},{"$f":"'Trang trí-Hoa-Quà tặng-Đi lại'!$C44-'Trang trí-Hoa-Quà tặng-Đi lại'!$D44","v":{"v":-1,"d":"-1.00 "}}]
[null,"Tiệc độc thân",{"v":0,"d":"0.00"},{"v":0,"d":"0.00"},{"$f":"'Trang trí-Hoa-Quà tặng-Đi lại'!$C45-'Trang trí-Hoa-Quà tặng-Đi lại'!$D45","v":{"v":0,"d":"0.00"}}]
[null,"Bữa nửa buổi",{"v":300,"d":"300.00"},{"v":400,"d":"400.00"},{"$f":"'Trang trí-Hoa-Quà tặng-Đi lại'!$C46-'Trang trí-Hoa-Quà tặng-Đi lại'!$D46","v":{"v":-100,"d":"-100.00 "}}]
[null,"Phòng khách sạn",{"v":0,"d":"0.00"},{"v":0,"d":"0.00"},{"$f":"'Trang trí-Hoa-Quà tặng-Đi lại'!$C47-'Trang trí-Hoa-Quà tặng-Đi lại'!$D47","v":{"v":0,"d":"0.00"}}]
[null,"Tổng chi phí khác",{"$f":"SUBTOTAL(109,Các_chi_phí_khác[ƯỚC TÍNH])","v":{"v":885,"d":"885.00"}},{"$f":"SUBTOTAL(109,Các_chi_phí_khác[THỰC TẾ])","v":{"v":1021,"d":"1,021.00"}},{"$f":"SUBTOTAL(109,Các_chi_phí_khác[VƯỢT/THẤP HƠN])","v":{"v":-136,"d":"-136.00 "}}]